[Event "26th Abu Dhabi Master 2019"]
[Site "Abu Dhabi"]
[Date "2019.08.03"]
[Round "3.7"]
[White "Abdusattorov, Nodirbek"]
[Black "Sanal, Vahap"]
[Result "1-0"]
[ECO "C88"]
[WhiteElo "2598"]
[BlackElo "2520"]
[Annotator "RC"]
[PlyCount "106"]
[EventDate "2019.08.02"]
[EventType "swiss"]
[EventCountry "UAE"]
[SourceTitle "playchess.com"]
[Source "ChessBase"]
[SourceQuality "1"]
[TimeControl "5400+30"]

1. e4 {[%emt 0:00:00]} e5 {[%emt 0:08:52]} 2. Nf3 {[%emt 0:00:00]} Nc6 {[%emt 0:00:11]} 3. Bb5 {[%emt 0:00:00]} a6 {[%emt 0:00:10]} 4. Ba4 {[%emt 0:00:00]} Nf6 {[%emt 0:00:07]} 5. O-O {[%emt 0:00:05]} Be7 {[%emt 0:01:38]} 6. Re1 {[%emt 0:00:06]} b5 {[%emt 0:00:11]} 7. Bb3 {[%emt 0:00:05]} O-O {[%emt 0:00:15]} 8. a4 {[%emt 0:00:06]} Bb7 {[%emt 0:00:26]} 9. axb5 {[%emt 0:04:59]} axb5 {[%emt 0:00:14]} 10. Rxa8 {[%emt 0:00:12]} Qxa8 {[%emt 0:01:55]} 11. d3 {[%emt 0:01:30]} d6 {[%emt 0:03:34]} 12. c3 {[%emt 0:05:43]} Nd7 {[%emt 0:11:07]} 13. Nbd2 {[%emt 0:02:09]} Nc5 {[%emt 0:04:22]} 14. Bc2 {[%emt 0:00:43]} Ne6 {[%emt 0:00:24]} 15. Nf1 {[%emt 0:02:04]} Bf6 {[%emt 0:01:11]} 16. Ne3 {[%emt 0:01:48]} g6 {[%emt 0:00:26]} 17. Bb3 {[%emt 0:08:46]} Bg7 {[%emt 0:01:24]} 18. Nd5 {[%emt 0:10:39]} Na5 {[%emt 0:02:35]} 19. Ne7+ {[%emt 0:08:40]} Kh8 {[%emt 0:00:26]} 20. Bxe6 {[%emt 0:03:33]} fxe6 {[%emt 0:01:25]} 21. b4 {[%emt 0:00:09]} Nc6 {[%emt 0:01:43]} 22. Nxc6 {[%emt 0:00:07]} Bxc6 {[%emt 0:00:08]} 23. Ng5 {[%emt 0:01:14]} Bd7 {[%emt 0:05:09]} 24. h4 {[%emt 0:01:11]} Qa2 {[%emt 0:04:30]} 25. Be3 {[%emt 0:02:50]} h6 {[%emt 0:05:01]} 26. Nh3 {[%emt 0:03:37]} Kh7 {[%emt 0:03:20]} 27. Re2 {[%emt 0:03:21]} Qa3 {[%emt 0:03:12]} 28. Rc2 {[%emt 0:00:49]} c5 {[%emt 0:11:31]} 29. Qd2 {[%emt 0:04:44]} Ra8 {[%emt 0:00:40]} 30. Kh2 {[%emt 0:00:37]} Be8 {[%emt 0:03:01]} 31. bxc5 {[%emt 0:03:15]} dxc5 {[%emt 0:00:04]} 32. c4 {[%emt 0:00:04]} Rc8 {[%emt 0:09:56]} 33. Ra2 {[%emt 0:02:19]} Qb4 {[%emt 0:02:23]} 34. Bxh6 {[%emt 0:00:31]} Qxd2 {[%emt 0:01:33]} 35. Bxd2 {[%emt 0:00:05]} b4 {[%emt 0:07:25]} 36. Ng5+ {[%emt 0:00:23]} Kg8 {[%emt 0:00:02]} 37. Nxe6 {[%emt 0:00:46]} Bf6 {[%emt 0:04:26]} 38. Be3 {[%emt 0:00:22]} Bxh4 {[%emt 0:00:46]} 39. Nxc5 {[%emt 0:00:09]} Be7 {[%emt 0:00:04]} 40. Nb3 {[%emt 0:02:22]} Rd8 {[%emt 0:00:02]} 41. Ra7 {[%emt 0:00:25]} Bf8 {[%emt 0:00:17]} 42. Nc5 {[%emt 0:04:00]} Bxc5 {[%emt 0:01:40]} 43. Bxc5 {[%emt 0:00:05]} b3 {[%emt 0:00:05]} 44. Ba3 {[%emt 0:03:40]} Rxd3 {[%emt 0:00:11]} 45. Ra8 {[%emt 0:02:17]} Kf7 {[%emt 0:00:12]} 46. f3 {[%emt 0:00:20]} g5 {[%emt 0:02:17]} 47. Ra7+ {[%emt 0:02:39]} Rd7 {[%emt 0:02:27]} 48. Ra5 {[%emt 0:00:20]} g4 {[%emt 0:00:20]} 49. Kg3 {[%emt 0:00:52]} gxf3 {[%emt 0:00:08]} 50. gxf3 {[%emt 0:00:04]} Ke6 {[%emt 0:01:00]} 51. Bb2 {[%emt 0:01:21]} Rd2 {[%emt 0:00:19]} 52. Rxe5+ {[%emt 0:00:16]} Kf7 {[%emt 0:00:05]} 53. Ba3 {[%emt 0:00:21]} Rd3 {[%emt 0:01:09]} 1-0

[Event "26th Abu Dhabi Master 2019"]
[Site "Abu Dhabi"]
[Date "2019.08.03"]
[Round "3.9"]
[White "Xu, Yi"]
[Black "Jobava, Baadur"]
[Result "0-1"]
[ECO "B12"]
[WhiteElo "2524"]
[BlackElo "2594"]
[Annotator "ChessBase"]
[PlyCount "88"]
[EventDate "2019.08.02"]
[EventType "swiss"]
[EventCountry "UAE"]
[SourceTitle "playchess.com"]
[Source "ChessBase"]
[SourceQuality "1"]
[TimeControl "5400+30"]

1. e4 c6 {[%emt 0:03:54]} 2. d4 {[%emt 0:00:35]} d5 {[%emt 0:00:04]} 3. e5 {[%emt 0:00:05]} Bf5 {[%emt 0:00:05]} 4. Nf3 {[%emt 0:00:08]} e6 {[%emt 0:00:04]} 5. Be2 {[%emt 0:00:06]} Ne7 {[%emt 0:00:04]} 6. c3 {[%emt 0:01:53]} h6 {[%emt 0:00:21]} 7. O-O {[%emt 0:01:10]} Nd7 {[%emt 0:00:29]} 8. Nbd2 {[%emt 0:00:31]} Bh7 {[%emt 0:00:09]} 9. b4 {[%emt 0:05:26]} Ng6 {[%emt 0:02:15]} 10. Nb3 {[%emt 0:07:03]} Be7 {[%emt 0:00:05]} 11. Ne1 {[%emt 0:02:06]} O-O {[%emt 0:02:19]} 12. f4 {[%emt 0:05:02]} b6 {[%emt 0:00:16]} 13. Be3 {[%emt 0:01:58]} a5 {[%emt 0:03:48]} 14. Nd3 {[%emt 0:05:22]} Qc7 {[%emt 0:03:55]} 15. g4 {[%emt 0:09:48]} Nh4 {[%emt 0:02:59]} 16. Bf2 {[%emt 0:04:07]} axb4 {[%emt 0:01:22]} 17. cxb4 {[%emt 0:00:43]} Ra3 {[%emt 0:01:06]} 18. Bg3 {[%emt 0:09:24]} Rfa8 {[%emt 0:09:02]} 19. Qd2 {[%emt 0:17:08]} Bxd3 {[%emt 0:06:47]} 20. Qxd3 {[%emt 0:01:34]} c5 {[%emt 0:00:16]} 21. bxc5 {[%emt 0:06:22]} bxc5 {[%emt 0:00:09]} 22. dxc5 {[%emt 0:01:42]} Nxc5 {[%emt 0:00:05]} 23. Qc2 {[%emt 0:00:28]} Qa7 {[%emt 0:03:00]} 24. Nxc5 {[%emt 0:06:37]} Qxc5+ {[%emt 0:09:56]} 25. Qxc5 {[%emt 0:00:06]} Bxc5+ {[%emt 0:00:03]} 26. Kh1 {[%emt 0:00:22]} Rxa2 {[%emt 0:00:24]} 27. Rxa2 {[%emt 0:00:24]} Rxa2 28. Bd3 {[%emt 0:00:43]} Ra3 {[%emt 0:05:36]} 29. Bb1 {[%emt 0:05:49]} Nf3 {[%emt 0:03:48]} 30. Rc1 {[%emt 0:00:12]} Nd2 {[%emt 0:04:41]} 31. Bf2 {[%emt 0:04:19]} Nxb1 {[%emt 0:05:53]} 32. Bxc5 {[%emt 0:00:12]} Rb3 {[%emt 0:00:26]} 33. Bd4 {[%emt 0:02:58]} Na3 {[%emt 0:02:00]} 34. Rc8+ {[%emt 0:00:34]} Kh7 {[%emt 0:00:05]} 35. Rf8 {[%emt 0:00:57]} Nc2 {[%emt 0:01:29]} 36. Bg1 {[%emt 0:00:34]} Rb7 {[%emt 0:02:42]} 37. f5 {[%emt 0:00:34]} Ne1 {[%emt 0:02:28]} 38. Bd4 {[%emt 0:01:19]} exf5 {[%emt 0:03:10]} 39. gxf5 {[%emt 0:00:10]} Nf3 {[%emt 0:00:02]} 40. Bc3 {[%emt 0:00:40]} d4 {[%emt 0:00:44]} 41. e6 {[%emt 0:00:33]} dxc3 {[%emt 0:01:09]} 42. exf7 {[%emt 0:00:44]} Rb2 {[%emt 0:00:10]} 43. Rh8+ {[%emt 0:00:23]} Kxh8 {[%emt 0:00:05]} 44. f8=Q+ {[%emt 0:00:05]} Kh7 {[%emt 0:00:03]} 0-1

[Event "26th Abu Dhabi Master 2019"]
[Site "Abu Dhabi"]
[Date "2019.08.03"]
[Round "3.16"]
[White "Aravindh, Chithambaram VR."]
[Black "Vignesh N R"]
[Result "1-0"]
[ECO "B53"]
[WhiteElo "2600"]
[BlackElo "2466"]
[Annotator "RC"]
[PlyCount "97"]
[EventDate "2019.08.02"]
[EventType "swiss"]
[EventCountry "UAE"]
[SourceTitle "playchess.com"]
[Source "ChessBase"]
[SourceQuality "1"]
[TimeControl "5400+30"]

1. e4 c5 2. Nf3 d6 3. d4 cxd4 4. Qxd4 Nf6 5. Bb5+ Bd7 6. c4 Nc6 7. Bxc6 Bxc6 8. Nc3 e6 9. O-O Be7 10. Qd3 O-O 11. Nd4 Qc7 12. Re1 Rad8 13. Bg5 h6 14. Bh4 Ng4 15. Bxe7 Qxe7 16. Qg3 Ne5 17. b3 Qg5 18. Rad1 a6 19. Re2 Rd7 20. Red2 Rfd8 21. Nxc6 bxc6 22. Na4 Qh5 23. f3 Kf8 24. Qf2 Ke7 25. Nb6 Rc7 26. c5 d5 27. exd5 exd5 28. g4 Qg5 29. Re2 Kf8 30. Qg3 Re7 31. Rde1 Ng6 32. h4 Qf6 33. Rxe7 Nxe7 34. Qc7 Ng6 35. Nd7+ Rxd7 36. Qxd7 Kg8 37. Qf5 Qd4+ 38. Kf1 Qxc5 39. Qc8+ Kh7 40. Qf5 Kg8 41. h5 Nf8 42. Qc8 Qc3 43. Kf2 Qd4+ 44. Kg3 Qc3 45. Re8 Qc5 46. Kh3 a5 47. Qd8 a4 48. bxa4 d4 49. a5 1-0

[Event "26th Abu Dhabi Master 2019"]
[Site "Abu Dhabi"]
[Date "2019.08.03"]
[Round "3.22"]
[White "Laxman, R.R."]
[Black "Vaibhav, Suri"]
[Result "1/2-1/2"]
[ECO "A40"]
[WhiteElo "2429"]
[BlackElo "2591"]
[Annotator "ChessBase"]
[PlyCount "105"]
[EventDate "2019.08.02"]
[EventType "swiss"]
[EventCountry "UAE"]
[SourceTitle "playchess.com"]
[Source "ChessBase"]
[SourceQuality "1"]
[TimeControl "5400+30"]

1. d4 {[%emt 0:00:29]} e6 {[%emt 0:00:10]} 2. Nf3 {[%emt 0:00:33]} Nf6 {[%emt 0:00:16]} 3. c4 {[%emt 0:00:47]} d5 {[%emt 0:00:39]} 4. e3 {[%emt 0:01:08]} b6 {[%emt 0:00:41]} 5. Nc3 {[%emt 0:00:45]} Bd6 {[%emt 0:00:05]} 6. Bd3 {[%emt 0:01:05]} Bb7 {[%emt 0:02:06]} 7. O-O {[%emt 0:00:26]} O-O {[%emt 0:00:23]} 8. b3 {[%emt 0:01:43]} dxc4 {[%emt 0:11:12]} 9. bxc4 {[%emt 0:01:16]} c5 {[%emt 0:00:26]} 10. Bb2 {[%emt 0:01:40]} cxd4 {[%emt 0:01:09]} 11. exd4 {[%emt 0:00:07]} Nbd7 {[%emt 0:07:56]} 12. Nb5 {[%emt 0:04:51]} Be7 {[%emt 0:06:01]} 13. Qe2 {[%emt 0:00:57]} Re8 {[%emt 0:01:01]} 14. Rfd1 {[%emt 0:00:45]} Bf8 {[%emt 0:06:59]} 15. Rac1 {[%emt 0:04:11]} a6 {[%emt 0:04:11]} 16. Nc3 {[%emt 0:00:13]} g6 {[%emt 0:00:31]} 17. Ne4 {[%emt 0:01:14]} Nxe4 {[%emt 0:08:26]} 18. Bxe4 {[%emt 0:00:05]} Bxe4 {[%emt 0:04:22]} 19. Qxe4 {[%emt 0:00:07]} Bg7 {[%emt 0:00:08]} 20. Ne5 {[%emt 0:06:47]} Qc7 {[%emt 0:06:32]} 21. Qf4 {[%emt 0:04:02]} f6 {[%emt 0:14:02]} 22. Nd3 {[%emt 0:00:08]} Qxf4 {[%emt 0:01:01]} 23. Nxf4 {[%emt 0:00:02]} Bh6 {[%emt 0:00:12]} 24. g3 {[%emt 0:00:02]} Rac8 {[%emt 0:02:24]} 25. Rc3 {[%emt 0:03:00]} Bxf4 {[%emt 0:06:01]} 26. gxf4 {[%emt 0:00:06]} Kf7 {[%emt 0:01:08]} 27. Ba3 {[%emt 0:01:32]} b5 {[%emt 0:05:22]} 28. Rh3 {[%emt 0:01:46]} h5 {[%emt 0:00:42]} 29. d5 {[%emt 0:00:50]} exd5 {[%emt 0:00:56]} 30. cxb5 {[%emt 0:00:13]} Nb6 {[%emt 0:04:06]} 31. bxa6 {[%emt 0:02:07]} Ra8 {[%emt 0:00:01]} 32. Bc5 {[%emt 0:01:05]} Rxa6 {[%emt 0:00:11]} 33. f5 {[%emt 0:01:34]} gxf5 {[%emt 0:01:32]} 34. Rxh5 {[%emt 0:00:59]} Kg6 {[%emt 0:01:30]} 35. Rh3 {[%emt 0:00:14]} Nd7 {[%emt 0:00:31]} 36. Rxd5 {[%emt 0:00:49]} Nxc5 {[%emt 0:00:53]} 37. Rxc5 {[%emt 0:00:08]} Rxa2 {[%emt 0:01:18]} 38. Rg3+ {[%emt 0:00:05]} Kf7 {[%emt 0:00:02]} 39. Rxf5 {[%emt 0:00:16]} Rh8 {[%emt 0:02:04]} 40. Rf4 {[%emt 0:00:31]} Ra5 {[%emt 0:00:32]} 41. Kg2 {[%emt 0:00:11]} Rah5 {[%emt 0:00:16]} 42. h3 {[%emt 0:00:05]} Rh4 {[%emt 0:01:03]} 43. Rff3 {[%emt 0:00:51]} R8h5 {[%emt 0:00:23]} 44. Ra3 {[%emt 0:00:12]} Rg5 {[%emt 0:00:28]} 45. Kh2 {[%emt 0:00:28]} Kg6 {[%emt 0:00:41]} 46. Ra6 {[%emt 0:00:18]} Rf4 {[%emt 0:01:12]} 47. Rxg5+ {[%emt 0:00:15]} Kxg5 {[%emt 0:00:01]} 48. Kg3 {[%emt 0:00:14]} Rf5 {[%emt 0:00:23]} 49. h4+ {[%emt 0:00:21]} Kg6 {[%emt 0:00:02]} 50. Ra4 {[%emt 0:00:34]} Rb5 {[%emt 0:00:11]} 51. Rg4+ {[%emt 0:00:10]} Kh6 {[%emt 0:00:12]} 52. Rf4 {[%emt 0:00:10]} Kg6 {[%emt 0:00:27]} 53. Kg4 {[%emt 0:00:05]} 1/2-1/2

[Event "26th Abu Dhabi Master 2019"]
[Site "Abu Dhabi"]
[Date "2019.08.03"]
[Round "3.23"]
[White "Santos Latasa, Jaime"]
[Black "Suleymanli, Aydin"]
[Result "1-0"]
[ECO "D11"]
[WhiteElo "2594"]
[BlackElo "2416"]
[Annotator "ChessBase"]
[PlyCount "97"]
[EventDate "2019.08.02"]
[EventType "swiss"]
[EventCountry "UAE"]
[SourceTitle "playchess.com"]
[Source "ChessBase"]
[SourceQuality "1"]
[TimeControl "5400+30"]

1. d4 d5 2. c4 c6 3. Nf3 {[%emt 0:00:00]} Nf6 {[%emt 0:00:00]} 4. e3 {[%emt 0:00:13]} e6 {[%emt 0:00:00]} 5. b3 {[%emt 0:00:04]} c5 {[%emt 0:02:43]} 6. cxd5 {[%emt 0:00:13]} Nxd5 {[%emt 0:00:13]} 7. Bb2 {[%emt 0:00:06]} cxd4 {[%emt 0:00:06]} 8. Nxd4 {[%emt 0:00:05]} Bb4+ {[%emt 0:00:08]} 9. Nd2 {[%emt 0:00:08]} O-O {[%emt 0:00:06]} 10. a3 {[%emt 0:00:38]} Bc3 {[%emt 0:01:01]} 11. Bxc3 {[%emt 0:00:16]} Nxc3 {[%emt 0:00:04]} 12. Qc2 {[%emt 0:00:04]} Nd5 {[%emt 0:00:18]} 13. Bd3 {[%emt 0:00:07]} Nf6 {[%emt 0:00:17]} 14. O-O {[%emt 0:00:55]} Qe7 {[%emt 0:01:37]} 15. b4 {[%emt 0:01:23]} Nbd7 {[%emt 0:00:13]} 16. Nc4 {[%emt 0:01:36]} Nb6 {[%emt 0:02:32]} 17. Na5 {[%emt 0:01:17]} e5 {[%emt 0:10:44]} 18. Nf5 {[%emt 0:03:27]} Bxf5 {[%emt 0:00:06]} 19. Bxf5 {[%emt 0:00:05]} g6 {[%emt 0:00:08]} 20. Bh3 {[%emt 0:01:55]} Nbd5 {[%emt 0:00:04]} 21. Rac1 {[%emt 0:01:06]} Rfe8 {[%emt 0:00:39]} 22. Rfd1 {[%emt 0:01:44]} Rad8 {[%emt 0:01:37]} 23. g3 {[%emt 0:02:06]} e4 {[%emt 0:00:09]} 24. Bg2 {[%emt 0:02:06]} Rd7 {[%emt 0:03:52]} 25. Qb2 {[%emt 0:04:01]} h5 {[%emt 0:03:34]} 26. Rd4 {[%emt 0:02:20]} h4 {[%emt 0:05:28]} 27. Nb3 {[%emt 0:01:05]} hxg3 {[%emt 0:00:46]} 28. hxg3 {[%emt 0:00:06]} Qe5 {[%emt 0:01:15]} 29. Nc5 {[%emt 0:08:18]} Rde7 {[%emt 0:00:32]} 30. Qc2 {[%emt 0:00:55]} Qh5 {[%emt 0:04:47]} 31. Nxe4 {[%emt 0:06:20]} Nxe4 {[%emt 0:14:54]} 32. Rxe4 {[%emt 0:00:24]} Rxe4 {[%emt 0:00:16]} 33. Bxe4 {[%emt 0:00:06]} Nf6 {[%emt 0:01:32]} 34. Bg2 {[%emt 0:01:11]} Re5 {[%emt 0:01:05]} 35. Qd1 {[%emt 0:04:50]} Qxd1+ {[%emt 0:04:11]} 36. Rxd1 {[%emt 0:00:19]} b6 {[%emt 0:01:06]} 37. Kf1 {[%emt 0:01:02]} Kg7 {[%emt 0:01:52]} 38. Rd6 {[%emt 0:00:34]} Rf5 {[%emt 0:01:12]} 39. Ke2 {[%emt 0:01:02]} Rb5 {[%emt 0:00:25]} 40. Ke1 {[%emt 0:00:45]} Rf5 {[%emt 0:00:36]} 41. Rc6 {[%emt 0:00:19]} Ng4 {[%emt 0:02:15]} 42. Bh3 {[%emt 0:01:46]} Rf6 {[%emt 0:00:26]} 43. Rxf6 {[%emt 0:03:47]} Nxf6 {[%emt 0:00:01]} 44. Ke2 {[%emt 0:00:10]} Kf8 {[%emt 0:00:09]} 45. Kd3 {[%emt 0:00:09]} Ke7 {[%emt 0:00:06]} 46. e4 {[%emt 0:00:36]} Nh5 {[%emt 0:00:39]} 47. Kd4 {[%emt 0:00:32]} Kd6 {[%emt 0:00:10]} 48. e5+ {[%emt 0:01:29]} Kc6 {[%emt 0:00:10]} 49. a4 {[%emt 0:00:39] Kd5+ Ke4+} 1-0

[Event "26th Abu Dhabi Master 2019"]
[Site "Abu Dhabi"]
[Date "2019.08.03"]
[Round "3.24"]
[White "Paichadze, Luka"]
[Black "Vaishali R"]
[Result "1-0"]
[ECO "B31"]
[WhiteElo "2567"]
[BlackElo "2344"]
[Annotator "ChessBase"]
[PlyCount "51"]
[EventDate "2019.08.02"]
[EventType "swiss"]
[EventCountry "UAE"]
[SourceTitle "playchess.com"]
[Source "ChessBase"]
[SourceQuality "1"]
[TimeControl "5400+30"]

1. e4 {[%emt 0:05:55]} c5 {[%emt 0:00:00]} 2. Nf3 {[%emt 0:00:34]} Nc6 {[%emt 0:00:05]} 3. Bb5 {[%emt 0:00:15]} g6 {[%emt 0:00:06]} 4. O-O {[%emt 0:00:22]} Bg7 {[%emt 0:00:05]} 5. c3 {[%emt 0:01:02]} Nf6 {[%emt 0:01:09]} 6. Re1 {[%emt 0:04:15]} O-O {[%emt 0:00:47]} 7. h3 {[%emt 0:00:48]} d5 {[%emt 0:10:41]} 8. e5 {[%emt 0:00:22]} Ne8 {[%emt 0:00:19]} 9. d4 {[%emt 0:00:41]} cxd4 {[%emt 0:00:47]} 10. cxd4 {[%emt 0:00:24]} Nc7 {[%emt 0:00:51]} 11. Bxc6 {[%emt 0:00:39]} bxc6 {[%emt 0:00:03]} 12. Nbd2 {[%emt 0:00:54]} Ne6 {[%emt 0:04:04]} 13. Nb3 {[%emt 0:00:18]} h6 {[%emt 0:09:06]} 14. Bd2 {[%emt 0:01:01]} a5 {[%emt 0:07:26]} 15. a4 {[%emt 0:08:39]} Qb6 {[%emt 0:04:01]} 16. Ra3 {[%emt 0:16:26]} Bd7 {[%emt 0:05:52]} 17. Bc3 {[%emt 0:00:23]} Rfb8 {[%emt 0:17:31]} 18. Qd2 {[%emt 0:02:00]} c5 {[%emt 0:02:58]} 19. Bxa5 {[%emt 0:03:11]} Qa7 {[%emt 0:02:43]} 20. dxc5 {[%emt 0:08:22]} Rxb3 {[%emt 0:11:17]} 21. Rxb3 {[%emt 0:00:15]} Nxc5 {[%emt 0:00:47]} 22. Ra3 {[%emt 0:01:47]} Ne4 {[%emt 0:02:42]} 23. Qxd5 {[%emt 0:01:08]} Qxf2+ {[%emt 0:02:49]} 24. Kh1 {[%emt 0:00:14]} Bxh3 {[%emt 0:05:18]} 25. Qxa8+ {[%emt 0:01:08]} Bf8 {[%emt 0:00:02]} 26. Nh4 {[%emt 0:01:40]} 1-0

[Event "26th Abu Dhabi Master 2019"]
[Site "Abu Dhabi"]
[Date "2019.08.03"]
[Round "3.26"]
[White "Santos Ruiz, Miguel"]
[Black "Soham Kamotra"]
[Result "1-0"]
[ECO "B13"]
[WhiteElo "2567"]
[BlackElo "2136"]
[Annotator "ChessBase"]
[PlyCount "71"]
[EventDate "2019.08.02"]
[EventType "swiss"]
[EventCountry "UAE"]
[SourceTitle "playchess.com"]
[Source "ChessBase"]
[SourceQuality "1"]
[TimeControl "5400+30"]

1. e4 {[%emt 0:00:00]} c6 {[%emt 0:00:00]} 2. d4 {[%emt 0:00:00]} d5 {[%emt 0:00:00]} 3. exd5 {[%emt 0:00:00]} cxd5 {[%emt 0:00:00]} 4. Bd3 {[%emt 0:00:00]} Nc6 {[%emt 0:00:00]} 5. c3 {[%emt 0:00:00]} Qc7 {[%emt 0:00:02]} 6. h3 {[%emt 0:00:04]} g6 {[%emt 0:00:06]} 7. Nf3 {[%emt 0:01:11]} Bf5 {[%emt 0:00:30]} 8. Be2 {[%emt 0:10:15]} Bg7 {[%emt 0:04:51]} 9. Be3 {[%emt 0:07:06]} Nf6 {[%emt 0:01:16]} 10. Nbd2 {[%emt 0:00:04]} O-O {[%emt 0:00:10]} 11. O-O {[%emt 0:00:03]} Rad8 {[%emt 0:06:28]} 12. Re1 {[%emt 0:05:12]} Rfe8 {[%emt 0:02:21]} 13. Bf1 {[%emt 0:03:34]} Ne4 {[%emt 0:03:12]} 14. Qc1 {[%emt 0:02:25]} Nd6 {[%emt 0:06:30]} 15. Bf4 {[%emt 0:07:50]} b6 {[%emt 0:03:14]} 16. Ne5 {[%emt 0:11:57]} f6 {[%emt 0:05:52]} 17. Nxc6 {[%emt 0:01:31]} Qxc6 {[%emt 0:00:05]} 18. Qd1 {[%emt 0:05:01]} e5 {[%emt 0:01:34]} 19. dxe5 {[%emt 0:01:58]} fxe5 {[%emt 0:00:06]} 20. Bh2 {[%emt 0:00:32]} Nc4 {[%emt 0:15:21]} 21. g4 {[%emt 0:04:54]} Bh6 {[%emt 0:08:32]} 22. gxf5 {[%emt 0:03:20]} Bxd2 {[%emt 0:02:29]} 23. Re2 {[%emt 0:02:48]} Bf4 {[%emt 0:11:28]} 24. Bxf4 {[%emt 0:03:33]} exf4 {[%emt 0:00:30]} 25. Rxe8+ {[%emt 0:00:43]} Rxe8 {[%emt 0:02:32]} 26. Bg2 {[%emt 0:00:55]} Re5 {[%emt 0:00:02]} 27. b3 {[%emt 0:01:02]} Nd6 {[%emt 0:01:04]} 28. c4 {[%emt 0:01:03]} Qc5 {[%emt 0:00:40]} 29. Bxd5+ {[%emt 0:01:35]} Kg7 {[%emt 0:01:41]} 30. fxg6 {[%emt 0:01:09]} Rg5+ {[%emt 0:01:20]} 31. Kf1 {[%emt 0:00:18]} Nf5 {[%emt 0:06:19]} 32. Qd2 {[%emt 0:10:57]} hxg6 {[%emt 0:05:54]} 33. Re1 {[%emt 0:00:55]} Qf8 {[%emt 0:05:14]} 34. Bf3 {[%emt 0:03:28]} Qf6 {[%emt 0:03:05]} 35. Qxf4 {[%emt 0:00:42]} Ne3+ {[%emt 0:00:05]} 36. Qxe3 {[%emt 0:00:09]} 1-0

[Event "26th Abu Dhabi Master 2019"]
[Site "Abu Dhabi"]
[Date "2019.08.03"]
[Round "3.30"]
[White "Mullick, Raahil"]
[Black "Kiriakov, Petr"]
[Result "1/2-1/2"]
[ECO "C11"]
[WhiteElo "2211"]
[BlackElo "2516"]
[Annotator "ChessBase"]
[PlyCount "32"]
[EventDate "2019.08.02"]
[EventType "swiss"]
[EventCountry "UAE"]
[SourceTitle "playchess.com"]
[Source "ChessBase"]
[SourceQuality "1"]
[TimeControl "5400+30"]

1. e4 {[%emt 0:00:09]} e6 {[%emt 0:00:00]} 2. d4 {[%emt 0:00:14]} d5 {[%emt 0:00:00]} 3. Nc3 {[%emt 0:00:12]} Nf6 {[%emt 0:00:33]} 4. e5 {[%emt 0:00:03]} Nfd7 {[%emt 0:00:07]} 5. f4 {[%emt 0:00:14]} c5 {[%emt 0:00:27]} 6. Nf3 {[%emt 0:00:04]} Nc6 {[%emt 0:00:07]} 7. Be3 {[%emt 0:00:04]} h6 {[%emt 0:12:31]} 8. Qd2 {[%emt 0:00:18]} g5 {[%emt 0:00:22]} 9. dxc5 {[%emt 0:00:04]} gxf4 {[%emt 0:00:19]} 10. Bxf4 {[%emt 0:00:15]} Nxc5 {[%emt 0:00:29]} 11. O-O-O {[%emt 0:00:24]} a6 {[%emt 0:02:09]} 12. Kb1 {[%emt 0:08:47]} b5 {[%emt 0:10:10]} 13. Bd3 {[%emt 0:09:18]} Qa5 {[%emt 0:05:50]} 14. Ne2 {[%emt 0:13:49]} Qxd2 {[%emt 0:08:39]} 15. Rxd2 {[%emt 0:00:59]} Ne4 16. Bxe4 dxe4 1/2-1/2

[Event "26th Abu Dhabi Master 2019"]
[Site "Abu Dhabi"]
[Date "2019.08.03"]
[Round "3.31"]
[White "Aronyak Ghosh"]
[Black "Kuybokarov, Temur"]
[Result "1/2-1/2"]
[ECO "A28"]
[WhiteElo "2349"]
[BlackElo "2511"]
[Annotator "ChessBase"]
[PlyCount "65"]
[EventDate "2019.08.02"]
[EventType "swiss"]
[EventCountry "UAE"]
[SourceTitle "playchess.com"]
[Source "ChessBase"]
[SourceQuality "1"]
[TimeControl "5400+30"]

1. c4 {[%emt 0:00:03]} e5 {[%emt 0:00:11]} 2. Nc3 {[%emt 0:00:09]} Nf6 {[%emt 0:00:19]} 3. Nf3 {[%emt 0:00:55]} Nc6 {[%emt 0:00:08]} 4. d3 {[%emt 0:02:32]} d5 {[%emt 0:01:19]} 5. cxd5 {[%emt 0:00:53]} Nxd5 {[%emt 0:00:06]} 6. e4 {[%emt 0:00:48]} Nxc3 {[%emt 0:00:46]} 7. bxc3 {[%emt 0:00:08]} Bc5 {[%emt 0:00:39]} 8. Be2 {[%emt 0:01:45]} O-O {[%emt 0:00:21]} 9. O-O {[%emt 0:06:03]} Qd6 {[%emt 0:00:07]} 10. Nd2 {[%emt 0:04:05]} Be6 {[%emt 0:08:39]} 11. Nb3 {[%emt 0:00:46]} Bb6 {[%emt 0:15:10]} 12. a4 {[%emt 0:00:32]} Rfd8 {[%emt 0:02:32]} 13. Ba3 {[%emt 0:01:14]} Qd7 {[%emt 0:00:06]} 14. Nc5 {[%emt 0:20:48]} Bxc5 {[%emt 0:00:34]} 15. Bxc5 {[%emt 0:00:02]} b6 {[%emt 0:07:40]} 16. Be3 {[%emt 0:00:32]} f5 {[%emt 0:03:09]} 17. exf5 {[%emt 0:02:59]} Bxf5 {[%emt 0:00:17]} 18. Qb3+ {[%emt 0:00:40]} Be6 {[%emt 0:04:18]} 19. Qb5 {[%emt 0:02:45]} a6 {[%emt 0:02:53]} 20. Qb2 {[%emt 0:00:21]} Rf8 {[%emt 0:06:05]} 21. Rad1 {[%emt 0:02:40]} Rae8 {[%emt 0:03:43]} 22. f3 {[%emt 0:06:20]} h6 {[%emt 0:04:11]} 23. Rfe1 {[%emt 0:01:12]} Qf7 {[%emt 0:02:10]} 24. Bf1 {[%emt 0:04:30]} Rd8 {[%emt 0:07:13]} 25. Bf2 {[%emt 0:01:30]} Rfe8 {[%emt 0:02:40]} 26. Bg3 {[%emt 0:02:37]} Bf5 {[%emt 0:00:29]} 27. Re3 {[%emt 0:00:59]} Kh7 {[%emt 0:03:07]} 28. Rde1 {[%emt 0:04:37]} Qg6 {[%emt 0:01:29]} 29. d4 {[%emt 0:00:54]} exd4 {[%emt 0:00:54]} 30. Rxe8 {[%emt 0:00:05]} Rxe8 {[%emt 0:00:16]} 31. Rxe8 {[%emt 0:00:06]} Qxe8 {[%emt 0:00:13]} 32. cxd4 {[%emt 0:00:05]} Qd7 {[%emt 0:02:24]} 33. d5 {[%emt 0:02:06]} 1/2-1/2

[Event "26th Abu Dhabi Master 2019"]
[Site "Abu Dhabi"]
[Date "2019.08.03"]
[Round "3.32"]
[White "Sindarov, Javokhir"]
[Black "Mithil, Ajgaonkar"]
[Result "1-0"]
[ECO "B12"]
[WhiteElo "2479"]
[BlackElo "2314"]
[Annotator "ChessBase"]
[PlyCount "55"]
[EventDate "2019.08.02"]
[EventType "swiss"]
[EventCountry "UAE"]
[SourceTitle "playchess.com"]
[Source "ChessBase"]
[SourceQuality "1"]
[TimeControl "5400+30"]

1. e4 c6 2. d4 d5 3. f3 e6 4. Nc3 Bb4 5. Bd2 dxe4 6. Nxe4 Be7 7. c3 Nf6 8. Nxf6+ Bxf6 9. f4 Nd7 10. Be3 b6 11. Nf3 Bb7 12. Bd3 Qc7 13. O-O O-O 14. Ne5 Rad8 15. Qe2 c5 16. Bb5 Nb8 17. Rad1 Be7 18. f5 f6 19. Ng6 hxg6 20. fxg6 Rd5 21. Bf4 Qc8 22. Bc4 Qc6 23. dxc5 Bxc5+ 24. Kh1 Ba6 25. Rxd5 Qxd5 26. Qxe6+ Qxe6 27. Bxe6+ Kh8 28. Rf3 1-0

[Event "26th Abu Dhabi Master 2019"]
[Site "Abu Dhabi"]
[Date "2019.08.03"]
[Round "3.33"]
[White "Tahbaz, Arash"]
[Black "Eynullayev, Atilla"]
[Result "1-0"]
[ECO "A05"]
[WhiteElo "2461"]
[BlackElo "2228"]
[Annotator "ChessBase"]
[PlyCount "57"]
[EventDate "2019.08.02"]
[EventType "swiss"]
[EventCountry "UAE"]
[SourceTitle "playchess.com"]
[Source "ChessBase"]
[SourceQuality "1"]
[TimeControl "5400+30"]

1. Nf3 Nf6 2. g3 d5 3. Bg2 c5 4. O-O e6 5. d3 Nc6 6. Nbd2 g6 7. e4 Bg7 8. Re1 O-O 9. Qe2 b6 10. Nf1 e5 11. Ne3 dxe4 12. dxe4 Nd4 13. Qd1 Bb7 14. Nd2 b5 15. c3 Ne6 16. Qe2 a6 17. Rd1 Qb6 18. Nd5 Nxd5 19. exd5 Nc7 20. c4 f5 21. Nb3 f4 22. Qc2 Rad8 23. Bd2 bxc4 24. Qxc4 Qf6 25. d6+ Ne6 26. Bxb7 fxg3 27. fxg3 Qf2+ 28. Kh1 Rxd6 29. Rf1 1-0